fUSD/lending_fUSD_20240327
["ID","MTS","AMOUNT","RATE_DAILY","PERIOD"]
[320755165,1711546243362,-500.0,0.00054794,120]
[320755166,1711546243377,-3365.88,0.00054794,120]
[320755167,1711546243390,-500.0,0.00054794,120]
[320755168,1711546243402,-500.0,0.00054794,120]
[320755169,1711546243415,-2493.43,0.00054794,120]
[320755170,1711546243426,-500.0,0.00054794,120]
[320755171,1711546243658,-6502.27,0.00054794,120]
[320755172,1711546243669,-1118.56,0.00054794,120]
[320755173,1711546243682,-1903.01,0.00054794,120]
[320755174,1711546243694,-4032.81,0.00054794,120]
[320755175,1711546243706,-508.01786223,0.00054794,120]
[320755176,1711546243719,-500.0,0.00054794,120]
[320755177,1711546243730,-3489.96,0.00054794,120]
[320755178,1711546243746,-500.0,0.00054794,120]
[320755179,1711546243757,-1655.33,0.00054794,120]
[320755180,1711546243769,-500.0,0.00054794,120]
[320755181,1711546243781,-2377.98,0.00054794,120]
[320755182,1711546243793,-2781.46,0.00054794,120]
[320755183,1711546243805,-508.7214921,0.00054794,120]
[320755184,1711546243817,-809.96,0.00054794,120]
[320755185,1711546243829,-505.61124055,0.00054794,120]
[320755186,1711546243841,-2002.63,0.00054794,120]
[320755187,1711546243857,-506.0698617,0.00054794,120]
[320755188,1711546243868,-14759.77,0.00054794,120]
[320755189,1711546243880,-791.97,0.00054794,120]
[320755190,1711546243892,-358.93939783,0.00054794,120]
[320755191,1711546243904,-500.0,0.00054794,120]
[320755192,1711546243916,-1000.0,0.00054794,14]
[320755193,1711546243928,-1559.07,0.00054794,120]
[320755194,1711546243940,-500.0,0.00054794,120]
[320755195,1711546243951,-500.0,0.00054794,120]
[320755196,1711546243963,-3176.79,0.00054794,120]
[320755197,1711546243975,-500.0,0.00054794,120]
[320755198,1711546243990,-500.0,0.00054794,120]
[320755199,1711546244002,-500.0,0.00054794,120]
[320755200,1711546244016,-675.25,0.00054794,120]
[320755201,1711546244028,-2335.04,0.00054794,120]
[320755202,1711546244039,-500.0,0.00054794,120]
[320755203,1711546244052,-504.33848337,0.00054794,120]
[320755204,1711546244063,-4505.08,0.00054794,120]
[320755205,1711546244075,-500.0,0.00054794,120]
[320755206,1711546244087,-10822.87,0.00054794,120]
[320755207,1711546244101,-500.0,0.00054794,120]
[320755208,1711546244113,-780.73,0.00054794,120]
[320755209,1711546244124,-500.0,0.00054794,120]
[320755210,1711546244136,-619.17,0.00054794,120]
[320755211,1711546244148,-703.7,0.00054794,120]
[320755212,1711546244159,-500.0,0.00054794,120]
[320755213,1711546244170,-4740.44,0.00054794,120]
[320755214,1711546244181,-505.37528519,0.00054794,120]
[320755215,1711546244192,-1735.73,0.00054794,120]
[320755216,1711546244209,-500.0,0.00054794,120]
[320755217,1711546244219,-2218.02,0.00054794,120]
[320755218,1711546244230,-500.0,0.00054794,120]
[320755219,1711546244241,-557.85,0.00054794,120]
[320755220,1711546244256,-500.0,0.00054794,120]
[320755221,1711546244266,-500.0,0.00054794,120]
[320755222,1711546244276,-1843.95,0.00054794,120]
[320755223,1711546244287,-500.0,0.00054794,120]
[320755224,1711546244298,-509.8050617,0.00054794,120]
[320755225,1711546244308,-493.87066905,0.00054794,120]
[320755226,1711546244319,-2753.07,0.00054794,120]
[320755227,1711546244329,-1883.62,0.00054794,120]
[320755228,1711546244340,-328.42004765,0.00054794,120]
[320755229,1711546244351,-500.0,0.00054794,120]
[320755230,1711546244363,-4513.67,0.00054794,120]
[320755231,1711546244377,-500.0,0.00054794,120]
[320755232,1711546244388,-447.17091126,0.00054794,120]
[320755233,1711546244399,-1877.07,0.00054794,120]
[320755234,1711546244411,-502.56414296,0.00054794,120]
[320755235,1711546244422,-500.0,0.00054794,120]
[320755236,1711546244432,-1576.26,0.00054794,120]
[320755237,1711546244441,-243.89903277,0.00054794,120]
[320755238,1711546244451,-990.99,0.00054794,120]
[320755239,1711546244462,-1131.33,0.00054794,120]
[320755240,1711546244472,-500.0,0.00054794,120]
[320755241,1711546244482,-500.0,0.00054794,120]
[320755242,1711546244491,-3993.02,0.00054794,120]
[320755243,1711546244502,-660.85,0.00054794,120]
[320755244,1711546244513,-1247.94,0.00054794,120]
[320755245,1711546244523,-3155.02,0.00054794,120]
[320755246,1711546244535,-9955.42,0.00054794,120]
[320755247,1711546244545,-500.0,0.00054794,120]
[320755248,1711546244555,-500.0,0.00054794,120]
[320755249,1711546244567,-605.7,0.00054794,120]
[320755250,1711546244802,-1396.99,0.00054794,120]
[320755251,1711546244812,-3326.33,0.00054794,120]
[320755252,1711546244822,-6861.65,0.00054794,120]
[320755253,1711546244832,-500.0,0.00054794,120]
[320755254,1711546244842,-4570.49,0.00054794,120]
[320755255,1711546244854,-500.0,0.00054794,120]
[320755256,1711546244864,-4124.1,0.00054794,120]
[320755257,1711546244874,-595.93,0.00054794,120]
[320755258,1711546244884,-531.49,0.00054794,120]
[320755259,1711546244894,-2890.55,0.00054794,120]
[320755260,1711546244904,-500.0,0.00054794,7]
[320755261,1711546244914,-13989.32,0.00054794,120]
[320755262,1711546244923,-500.0,0.00054794,120]
[320755263,1711546244934,-500.0,0.00054794,120]
[320755264,1711546244944,-4679.66,0.00054794,120]
[320755265,1711546244953,-500.0,0.00054794,120]
[320755266,1711546244963,-500.0,0.00054794,120]
[320755267,1711546244972,-3271.7,0.00054794,120]
[320755268,1711546244982,-1395.81819029,0.00054794,120]
[320755269,1711546245292,-40399.41180971,0.00054794,120]
[320755270,1711546245302,-2282.57,0.00054794,120]
[320755271,1711546245311,-5627.49,0.00054794,120]
[320755272,1711546245321,-503.62782108,0.00054794,120]
[320755273,1711546245331,-500.0,0.00054794,120]
[320755274,1711546245340,-500.0,0.00054794,120]
[320755275,1711546245352,-500.0,0.00054794,120]
[320755276,1711546245362,-500.0,0.00054794,120]
[320755277,1711546245375,-500.0,0.00054794,120]
[320755278,1711546245384,-569.04,0.00054794,120]
[320755279,1711546245393,-500.0,0.00054794,120]
[320755280,1711546245403,-5592.75,0.00054794,120]
[320755281,1711546245415,-761.08,0.00054794,120]
[320755282,1711546245425,-3670.01,0.00054794,120]
[320755283,1711546245435,-500.0,0.00054794,120]
[320755284,1711546245447,-500.0,0.00054794,120]
[320755285,1711546245461,-7743.51,0.00054794,120]
[320755286,1711546245473,-500.0,0.00054794,120]
[320755287,1711546245482,-2679.29,0.00054794,120]
[320755288,1711546245492,-657.93,0.00054794,120]
[320755289,1711546245501,-500.0,0.00054794,120]
[320755290,1711546245511,-1839.6,0.00054794,120]
[320755291,1711546245520,-1315.57,0.00054794,120]
[320755292,1711546245529,-500.0,0.00054794,120]
[320755293,1711546245539,-4254.04,0.00054794,120]
[320755294,1711546245550,-500.0,0.00054794,120]
[320755295,1711546245561,-10846.92,0.00054794,120]
[320755296,1711546245573,-500.0,0.00054794,85]
[320755297,1711546245583,-1768.16,0.00054794,120]
[320755298,1711546245593,-500.0,0.00054794,120]
[320755299,1711546245606,-500.0,0.00054794,120]
[320755300,1711546245616,-500.0,0.00054794,120]
[320755301,1711546245625,-3432.06,0.00054794,120]
[320755302,1711546245636,-500.0,0.00054794,120]
[320755303,1711546245646,-3495.69,0.00054794,120]
[320755304,1711546245657,-500.0,0.00054794,120]
[320755305,1711546245667,-1982.01,0.00054794,120]
[320755306,1711546245677,-11789.75,0.00054794,120]
[320755307,1711546245688,-3095.23,0.00054794,120]
[320755308,1711546245697,-1112.01,0.00054794,120]
[320755309,1711546245708,-1435.37,0.00054794,120]
[320755310,1711546245718,-500.0,0.00054794,120]
[320755311,1711546245729,-500.0,0.00054794,120]
[320755312,1711546245739,-1604.22,0.00054794,120]
[320755313,1711546245749,-749.83,0.00054794,120]
[320755314,1711546245759,-500.0,0.00054794,2]
[320755315,1711546245770,-10818.47,0.00054794,120]
[320755316,1711546245779,-500.0,0.00054794,120]
[320755317,1711546245789,-2149.13,0.00054794,120]
[320755318,1711546245799,-500.0,0.00054794,120]
[320755319,1711546245808,-500.0,0.00054794,120]
[320755320,1711546245817,-2348.74,0.00054794,120]
[320755321,1711546245827,-1451.12,0.00054794,21]
[320755322,1711546245836,-3081.76,0.00054794,120]
[320755323,1711546245846,-857.15,0.00054794,120]
[320755324,1711546245856,-1180.95,0.00054794,120]
[320755325,1711546245866,-2669.46,0.00054794,120]
[320755326,1711546245876,-500.0,0.00054794,120]
[320755327,1711546245885,-2272.11,0.00054794,120]
[320755328,1711546245894,-1352.32,0.00054794,120]
[320755329,1711546245903,-500.0,0.00054794,120]
[320755330,1711546245913,-500.0,0.00054794,120]
[320755331,1711546245921,-5503.0,0.00054794,120]
[320755332,1711546245931,-5598.25,0.00054794,120]
[320755333,1711546245941,-961.23,0.00054794,120]
[320755334,1711546245950,-2143.06,0.00054794,120]
[320755335,1711546245959,-2082.08,0.00054794,120]
[320755336,1711546245969,-815.9,0.00054794,120]
[320755337,1711546245979,-1368.84,0.00054794,120]
[320755338,1711546245989,-500.0,0.00054794,120]
[320755339,1711546245998,-1928.38,0.00054794,120]
[320755340,1711546246007,-3011.32,0.00054794,120]
[320755341,1711546246017,-793.86,0.00054794,120]
[320755342,1711546246026,-1368.28,0.00054794,120]
[320755343,1711546246035,-500.0,0.00054794,120]
[320755344,1711546246045,-7556.18,0.00054794,120]
[320755346,1711546246054,-581.46,0.00054794,120]
[320755348,1711546246064,-697.38,0.00054794,120]
[320755349,1711546246073,-500.0,0.00054794,120]
[320755351,1711546246085,-2503.39,0.00054794,120]
[320755353,1711546246095,-500.0,0.00054794,120]
[320755354,1711546246109,-8529.57,0.00054794,120]
[320755355,1711546246118,-536.2,0.00054794,120]
[320755356,1711546246129,-1917.65,0.00054794,120]
[320755357,1711546246138,-525.48,0.00054794,120]
[320755358,1711546246147,-759.45,0.00054794,120]
[320755359,1711546246157,-1477.82,0.00054794,120]
[320755360,1711546246166,-1223.91,0.00054794,120]
[320755362,1711546246175,-825.56,0.00054794,120]
[320755364,1711546246185,-1436.23,0.00054794,120]
[320755366,1711546246194,-500.0,0.00054794,120]
[320755367,1711546246203,-1324.17,0.00054794,120]
[320755369,1711546246212,-500.0,0.00054794,120]
[320755370,1711546246222,-500.0,0.00054794,120]
[320755371,1711546246231,-500.0,0.00054794,120]
[320755372,1711546246241,-2816.8,0.00054794,120]
[320755373,1711546246251,-1465.89,0.00054794,120]
[320755374,1711546246261,-500.0,0.00054794,120]
[320755375,1711546246271,-1390.99,0.00054794,120]
[320755376,1711546246280,-500.0,0.00054794,120]
[320755377,1711546246290,-2196.4,0.00054794,120]
[320755378,1711546246300,-1853.28,0.00054794,120]
[320755379,1711546246309,-500.0,0.00054794,120]
[320755381,1711546246320,-879.78,0.00054794,120]
[320755382,1711546246330,-683.41,0.00054794,120]
[320755384,1711546246340,-2070.24,0.00054794,120]
[320755385,1711546246353,-500.0,0.00054794,120]
[320755386,1711546246363,-5083.4,0.00054794,120]
[320755387,1711546246376,-500.0,0.00054794,120]
[320755388,1711546246386,-500.0,0.00054794,120]
[320755389,1711546246395,-2530.28,0.00054794,120]
[320755390,1711546246405,-677.34,0.00054794,120]
[320755391,1711546246416,-2419.47,0.00054794,120]
[320755392,1711546246425,-500.0,0.00054794,120]
[320755393,1711546246435,-500.0,0.00054794,120]
[320755394,1711546246446,-1297.52,0.00054794,120]
[320755395,1711546246456,-500.0,0.00054794,120]
[320755396,1711546246466,-3660.16,0.00054794,120]
[320755397,1711546246476,-500.0,0.00054794,120]
[320755398,1711546246485,-200.0,0.00054795,30]
[320755399,1711546246495,-628.0,0.00054795,120]
[320755400,1711546246505,-807.0,0.00054795,120]
[320755401,1711546246514,-500.0,0.00054795,120]
[320755402,1711546246524,-500.0,0.00054795,120]
[320755403,1711546246534,-500.0,0.00054795,120]
[320755404,1711546246543,-500.0,0.00054795,120]
[320755405,1711546246552,-500.0,0.00054795,120]
[320755406,1711546246562,-500.0,0.00054795,120]
[320755407,1711546246572,-500.0,0.00054795,120]
[320755408,1711546246581,-500.0,0.00054795,120]
[320755409,1711546246591,-500.0,0.00054795,120]
[320755410,1711546246602,-500.0,0.00054795,120]
[320755411,1711546246612,-155.06024718,0.000548,120]
[320755412,1711546246622,-3610.0,0.000548,120]
[320755413,1711546246632,-159.96085961,0.00054849,60]
[320755414,1711546246642,-2000.0,0.0005488,110]
[320755415,1711546246652,-68528.73901865,0.000549,45]
[320755416,1711546246666,-216627.84641107,0.000549,45]
[320755417,1711546246677,-39842.33188418,0.000549,45]
[320755418,1711546246686,-415.7577203,0.00054927,14]
[320755419,1711546246696,-182.0,0.0005499,15]
[320755420,1711546246706,-150.5,0.00055,15]
[320755421,1711546246715,-1500.0,0.00055,120]
[320755422,1711546246725,-150.5,0.0005501,15]
[320755424,1711546246734,-150.0,0.00055067,30]
[320755426,1711546246744,-200.0,0.00055068,120]
[320755428,1711546246753,-500.0,0.00055068,120]
[320755430,1711546246762,-500.0,0.00055068,120]
[320755432,1711546246770,-500.0,0.00055068,120]
[320755434,1711546246779,-648.45506617,0.00055068,120]
[320755435,1711546246789,-500.0,0.00055068,120]
[320755437,1711546246798,-500.0,0.00055068,120]
[320755439,1711546246807,-500.0,0.00055068,120]
[320755440,1711546246817,-500.0,0.00055068,120]
[320755441,1711546246825,-294.77287808,0.00055068,120]
[320755442,1711546246835,-500.0,0.00055068,120]
[320755443,1711546246844,-626.37,0.00055068,120]
[320755444,1711546246856,-500.0,0.00055068,120]
[320755445,1711546246865,-500.0,0.00055068,120]
[320755446,1711546246875,-500.0,0.00055068,120]
[320755447,1711546246884,-708.09,0.00055068,120]
[320755448,1711546246893,-500.0,0.00055068,120]
[320755449,1711546246902,-500.0,0.00055068,120]
[320755450,1711546246912,-443.42,0.00055068,120]
[320755451,1711546246922,-166.0,0.00055068,120]
[320755452,1711546246931,-500.0,0.00055068,120]
[320755453,1711546246941,-543.86,0.00055068,120]
[320755454,1711546246951,-500.0,0.00055068,120]
[320755455,1711546246960,-500.0,0.00055068,120]
[320755456,1711546246969,-500.0,0.00055068,120]
[320755457,1711546246979,-500.0,0.00055068,120]
[320755458,1711546246990,-500.0,0.00055068,120]
[320755459,1711546247000,-577.45,0.00055068,120]
[320755460,1711546247010,-500.0,0.00055068,120]
[320755461,1711546247020,-216.67,0.00055068,120]
[320755462,1711546247029,-500.0,0.00055068,120]
[320755463,1711546247039,-563.1,0.00055068,120]
[320755464,1711546247049,-622.12568073,0.00055068,120]
[320755465,1711546247058,-500.0,0.00055068,120]
[320755466,1711546247067,-500.0,0.00055068,120]
[320755467,1711546247077,-500.0,0.00055068,120]
[320755468,1711546247087,-500.0,0.00055068,120]
[320755469,1711546247156,-500.0,0.00055068,120]
[320755470,1711546247165,-534.4,0.00055068,120]
[320755471,1711546247174,-500.0,0.00055068,120]
[320755472,1711546247183,-500.0,0.00055068,120]
[320755473,1711546247193,-500.0,0.00055068,120]
[320755474,1711546247202,-500.0,0.00055068,120]
[320755475,1711546247211,-500.0,0.00055068,120]
[320755476,1711546247220,-306.68,0.00055068,120]
[320755477,1711546247229,-500.0,0.00055068,120]
[320755478,1711546247239,-233.26,0.00055068,120]
[320755479,1711546247249,-406.16,0.00055068,120]
[320755480,1711546247259,-735.73,0.00055068,120]
[320755481,1711546247269,-500.0,0.00055068,120]
[320755482,1711546247278,-500.0,0.00055068,120]
[320755483,1711546247287,-500.0,0.00055068,120]
[320755484,1711546247295,-508.5,0.00055068,120]
[320755485,1711546247305,-500.0,0.00055068,120]
[320755486,1711546247314,-608.18,0.00055068,120]
[320755487,1711546247324,-500.0,0.00055068,120]
[320755488,1711546247334,-500.0,0.00055068,120]
[320755489,1711546247345,-1125.86,0.00055068,120]
[320755490,1711546247358,-500.0,0.00055068,120]
[320755491,1711546247372,-1843.65,0.00055068,120]
[320755492,1711546247382,-500.0,0.00055068,120]
[320755493,1711546247390,-500.0,0.00055068,120]
[320755494,1711546247400,-500.0,0.00055068,120]
[320755495,1711546247410,-598.38,0.00055068,120]
[320755496,1711546247420,-500.0,0.00055068,120]
[320755497,1711546247429,-510.94,0.00055068,60]
[320755498,1711546247440,-500.0,0.00055068,120]
[320755499,1711546247449,-500.0,0.00055068,120]
[320755500,1711546247458,-358.97,0.00055068,120]
[320755501,1711546247468,-500.0,0.00055068,120]
[320755502,1711546247478,-696.37,0.00055068,120]
[320755503,1711546247487,-500.0,0.00055068,120]
[320755504,1711546247496,-500.0,0.00055068,120]
[320755505,1711546247506,-500.0,0.00055068,120]
[320755506,1711546247515,-1625.34,0.00055068,120]
[320755507,1711546247524,-500.0,0.00055068,120]
[320755508,1711546247534,-500.0,0.00055068,120]
[320755509,1711546247543,-500.0,0.00055068,120]
[320755510,1711546247553,-500.0,0.00055068,120]
[320755511,1711546247562,-500.0,0.00055068,120]
[320755512,1711546247571,-500.0,0.00055068,120]
[320755513,1711546247582,-500.0,0.00055068,120]
[320755514,1711546247590,-500.0,0.00055068,120]
[320755515,1711546247603,-500.0,0.00055068,120]
[320755516,1711546247613,-500.0,0.00055068,120]
[320755517,1711546247623,-500.0,0.00055068,120]
[320755518,1711546247633,-500.0,0.00055068,120]
[320755519,1711546247643,-500.0,0.00055068,120]
[320755520,1711546247653,-500.0,0.00055068,120]
[320755521,1711546247664,-528.3,0.00055068,120]
[320755522,1711546247674,-500.0,0.00055068,120]
[320755523,1711546247685,-500.0,0.00055068,120]
[320755524,1711546247695,-500.0,0.00055068,120]
[320755525,1711546247705,-500.0,0.00055068,120]
[320755526,1711546247716,-500.0,0.00055068,120]
[320755527,1711546247726,-500.0,0.00055068,120]
[320755528,1711546247737,-500.0,0.00055068,120]
[320755529,1711546247747,-500.0,0.00055068,120]
[320755530,1711546247757,-656.03,0.00055068,120]
[320755531,1711546247766,-648.64,0.00055068,120]
[320755532,1711546247776,-500.0,0.00055068,120]
[320755533,1711546247786,-500.0,0.00055068,120]
[320755534,1711546247795,-1286.21,0.00055068,120]
[320755535,1711546247807,-1035.35,0.00055068,120]
[320755536,1711546247816,-1349.26,0.00055068,120]
[320755537,1711546247826,-500.0,0.00055068,120]
[320755538,1711546247835,-500.0,0.00055068,120]
[320755539,1711546247844,-500.0,0.00055068,120]
[320755540,1711546247861,-500.0,0.00055068,120]
[320755541,1711546247870,-725.7,0.00055068,120]
[320755542,1711546247880,-500.0,0.00055068,120]
[320755543,1711546247889,-500.0,0.00055068,120]
[320755544,1711546247898,-500.0,0.00055068,120]
[320755545,1711546247908,-500.0,0.00055068,120]
[320755546,1711546247917,-500.0,0.00055068,120]
[320755547,1711546247927,-369.55,0.00055068,120]
[320755548,1711546247936,-720.29,0.00055068,120]
[320755549,1711546247946,-500.0,0.00055068,120]
[320755550,1711546247955,-500.0,0.00055068,120]
[320755551,1711546247965,-500.0,0.00055068,120]
[320755552,1711546247974,-679.92,0.00055068,120]
[320755553,1711546247983,-500.0,0.00055068,120]
[320755554,1711546247992,-500.0,0.00055068,120]
[320755555,1711546248001,-500.0,0.00055068,120]
[320755556,1711546248011,-500.0,0.00055068,120]
[320755557,1711546248020,-518.87,0.00055068,120]
[320755558,1711546248029,-500.0,0.00055068,120]
[320755559,1711546248038,-500.0,0.00055068,120]
[320755560,1711546248047,-1000.0,0.00055068,120]
[320755561,1711546248056,-500.0,0.00055068,120]
[320755562,1711546248066,-560.6,0.00055068,120]
[320755563,1711546248075,-712.56,0.00055068,120]
[320755564,1711546248085,-500.0,0.00055068,120]
[320755565,1711546248094,-702.36,0.00055068,120]
[320755566,1711546248108,-364.9,0.00055068,120]
[320755567,1711546248118,-500.0,0.00055068,120]
[320755568,1711546248138,-539.02,0.00055068,120]
[320755569,1711546248148,-500.0,0.00055068,120]
[320755570,1711546248157,-500.0,0.00055068,120]
[320755571,1711546248167,-500.0,0.00055068,120]
[320755572,1711546248178,-500.0,0.00055068,120]
[320755573,1711546248189,-500.0,0.00055068,120]
[320755574,1711546248199,-500.0,0.00055068,120]
[320755575,1711546248209,-500.0,0.00055068,120]
[320755576,1711546248219,-500.0,0.00055068,120]
[320755577,1711546248228,-500.0,0.00055068,120]
[320755578,1711546248238,-731.02,0.00055068,120]
[320755579,1711546248247,-500.0,0.00055068,120]
[320755580,1711546248256,-500.0,0.00055068,120]
[320755581,1711546248267,-500.0,0.00055068,120]
[320755582,1711546248276,-652.69,0.00055068,120]
[320755583,1711546248284,-508.68,0.00055068,120]
[320755584,1711546248293,-1364.67,0.00055068,120]
[320755585,1711546248303,-500.0,0.00055068,120]
[320755586,1711546248313,-500.0,0.00055068,120]
[320755587,1711546248324,-888.28,0.00055068,120]
[320755588,1711546248334,-1571.16,0.00055068,120]
[320755589,1711546248343,-524.2,0.00055068,120]
[320755590,1711546248357,-788.85,0.00055068,120]
[320755591,1711546248369,-500.0,0.00055068,120]
[320755592,1711546248379,-500.0,0.00055068,120]
[320755593,1711546248388,-500.0,0.00055068,120]
[320755594,1711546248398,-500.0,0.00055068,120]
[320755595,1711546248407,-606.55,0.00055068,120]
[320755596,1711546248419,-500.0,0.00055068,120]
[320755597,1711546248429,-644.38,0.00055068,120]
[320755598,1711546248438,-500.0,0.00055068,120]
[320755599,1711546248448,-500.0,0.00055068,120]
[320755600,1711546248459,-500.0,0.00055068,120]
[320755601,1711546248469,-500.0,0.00055068,120]
[320755602,1711546248480,-500.0,0.00055068,120]
[320755603,1711546248490,-979.53,0.00055068,120]
[320755604,1711546248501,-546.29,0.00055068,120]
[320755605,1711546248511,-523.62,0.00055068,120]
[320755606,1711546248520,-735.73,0.00055068,120]
[320755607,1711546248530,-1430.03,0.00055068,120]
[320755608,1711546248541,-500.0,0.00055068,120]
[320755609,1711546248553,-500.0,0.00055068,120]
[320755610,1711546248566,-512.99,0.00055068,120]
[320755611,1711546248577,-500.0,0.00055068,120]
[320755612,1711546248587,-500.0,0.00055068,120]
[320755613,1711546248601,-500.0,0.00055068,120]
[320755614,1711546248611,-655.53,0.00055068,120]
[320755615,1711546248622,-500.0,0.00055068,7]
[320755616,1711546248634,-643.82,0.00055068,120]
[320755617,1711546248645,-500.0,0.00055068,120]
[320755618,1711546248657,-945.38,0.00055068,120]
[320755619,1711546248672,-500.0,0.00055068,120]
[320755620,1711546248682,-500.0,0.00055068,120]
[320755621,1711546248695,-561.63,0.00055068,30]
[320755622,1711546248706,-500.0,0.00055068,120]
[320755623,1711546248716,-500.0,0.00055068,120]
[320755624,1711546248726,-500.0,0.00055068,120]
[320755625,1711546248736,-500.0,0.00055068,120]
[320755626,1711546248746,-500.0,0.00055068,120]
[320755627,1711546248755,-1344.28,0.00055068,120]
[320755628,1711546248765,-500.0,0.00055068,120]
[320755629,1711546248775,-500.0,0.00055068,120]
[320755630,1711546248785,-500.0,0.00055068,120]
[320755631,1711546248795,-500.0,0.00055068,120]
[320755632,1711546248805,-537.06,0.00055068,120]
[320755633,1711546248815,-988.46,0.00055068,120]
[320755634,1711546248828,-500.0,0.00055068,120]
[320755635,1711546248838,-500.0,0.00055068,120]
[320755636,1711546248850,-500.0,0.00055068,120]
[320755637,1711546248861,-600.1,0.00055068,120]
[320755638,1711546248872,-557.47,0.00055068,120]
[320755639,1711546248882,-559.84,0.00055068,120]
[320755640,1711546248892,-500.0,0.00055068,120]
[320755641,1711546248903,-500.25,0.00055068,120]
[320755642,1711546248913,-201.1643096,0.00055068,120]
[320755643,1711546248923,-500.0,0.00055068,120]
[320755644,1711546248934,-500.0,0.00055068,120]
[320755645,1711546248945,-567.33,0.00055068,120]
[320755646,1711546248955,-500.0,0.00055068,120]
[320755647,1711546248966,-500.0,0.00055068,120]
[320755648,1711546248976,-500.0,0.00055068,120]
[320755649,1711546248986,-1394.47,0.00055068,120]
[320755650,1711546248997,-590.16,0.00055068,120]
[320755651,1711546249007,-500.0,0.00055068,120]
[320755652,1711546249018,-500.0,0.00055068,120]
[320755653,1711546249028,-500.0,0.00055068,120]
[320755654,1711546249038,-500.0,0.00055068,120]
[320755655,1711546249049,-500.0,0.00055068,120]
[320755656,1711546249059,-305.42,0.00055068,120]
[320755657,1711546249069,-500.0,0.00055068,120]
[320755658,1711546249080,-500.0,0.00055068,120]
[320755659,1711546249090,-500.0,0.00055068,120]
[320755660,1711546249104,-511.0,0.00055068,120]
[320755661,1711546249115,-500.0,0.00055068,120]
[320755662,1711546249126,-500.0,0.00055068,120]
[320755663,1711546249136,-365.93,0.00055068,120]
[320755664,1711546249146,-710.04,0.00055068,120]
[320755665,1711546249157,-598.53222857,0.00055068,120]
[320755666,1711546249167,-500.0,0.00055068,120]
[320755667,1711546249178,-542.11,0.00055068,120]
[320755668,1711546249188,-500.0,0.00055068,120]
[320755669,1711546249198,-506.08,0.00055068,120]
[320755670,1711546249208,-500.0,0.00055068,120]
[320755671,1711546249219,-500.0,0.00055068,120]
[320755672,1711546249229,-626.43,0.00055068,120]
[320755673,1711546249239,-500.0,0.00055068,120]
[320755674,1711546249250,-500.0,0.00055068,120]
[320755675,1711546249260,-519.55839831,0.00055068,120]
[320755676,1711546249270,-500.0,0.00055068,120]
[320755677,1711546249281,-500.0,0.00055068,120]
[320755678,1711546249292,-1563.81,0.00055068,120]
[320755679,1711546249302,-500.0,0.00055068,120]
[320755680,1711546249313,-242.65,0.00055068,120]
[320755681,1711546249324,-500.0,0.00055068,120]
[320755682,1711546249335,-500.0,0.00055068,120]